lending/lending_fUSD_20240710
["ID","MTS","AMOUNT","RATE_DAILY","PERIOD"]
[331602530,1720578697038,-500.0,0.0001394,2]
[331602531,1720578697048,-2290.0,0.0001394,2]
[331602532,1720578697057,-500.0,0.0001394,2]
[331602533,1720578697066,-500.0,0.0001394,2]
[331602534,1720578697076,-500.0,0.0001394,2]
[331602535,1720578697085,-500.0,0.0001394,2]
[331602536,1720578697094,-500.0,0.0001394,2]
[331602537,1720578697103,-500.0,0.0001394,2]
[331602538,1720578697112,-500.0,0.0001394,2]
[331602539,1720578697123,-500.0,0.0001394,2]
[331602540,1720578697132,-500.0,0.0001394,2]
[331602541,1720578697141,-500.0,0.0001394,2]
[331602542,1720578697151,-2057.34,0.0001394,2]
[331602543,1720578697161,-500.0,0.0001394,2]
[331602544,1720578697170,-547.33489821,0.0001394,2]
[331602545,1720578697180,-500.0,0.0001394,2]
[331602546,1720578697189,-1648.68,0.0001394,2]
[331602547,1720578697199,-500.0,0.0001394,2]
[331602548,1720578697208,-500.0,0.0001394,2]
[331602549,1720578697217,-500.0,0.0001394,2]
[331602550,1720578697226,-1038.91,0.0001394,2]
[331602551,1720578697235,-1038.91,0.0001394,2]
[331602552,1720578697245,-500.0,0.0001394,2]
[331602553,1720578697254,-500.0,0.0001394,2]
[331602554,1720578697263,-5214.09,0.0001394,2]
[331602555,1720578697273,-5214.09,0.0001394,2]
[331602556,1720578697282,-2721.34,0.0001394,2]
[331602557,1720578697291,-500.0,0.0001394,2]
[331602558,1720578697300,-521.23153194,0.0001394,2]
[331602559,1720578697310,-1375.79,0.0001394,2]
[331602560,1720578697319,-500.0,0.0001394,2]
[331602561,1720578697330,-500.0,0.0001394,2]
[331602562,1720578697339,-544.49,0.0001394,2]
[331602563,1720578697349,-500.0,0.0001394,2]
[331602564,1720578697358,-199.79970637,0.0001394,2]
[331602565,1720578697371,-3248.9,0.0001394,2]
[331602566,1720578697380,-500.0,0.0001394,2]
[331602567,1720578697390,-500.0,0.0001394,2]
[331602568,1720578697400,-500.0,0.0001394,2]
[331602569,1720578697410,-500.0,0.0001394,2]
[331602570,1720578697419,-3341.97,0.0001394,2]
[331602571,1720578697428,-500.0,0.0001394,2]
[331602572,1720578697438,-2571.74,0.0001394,2]
[331602573,1720578697448,-500.0,0.0001394,2]
[331602574,1720578697457,-576.23,0.0001394,2]
[331602575,1720578697466,-558.40303753,0.0001394,2]
[331602576,1720578697475,-500.0,0.0001394,2]
[331602577,1720578697484,-500.0,0.0001394,2]
[331602578,1720578697493,-3031.33,0.0001394,2]
[331602579,1720578697503,-500.0,0.0001394,2]
[331602580,1720578697512,-500.0,0.0001394,2]
[331602581,1720578697522,-545.72,0.0001394,2]
[331602582,1720578697531,-500.0,0.0001394,2]
[331602583,1720578697540,-3107.63,0.0001394,2]
[331602584,1720578697551,-500.0,0.0001394,2]
[331602585,1720578697560,-500.0,0.0001394,2]
[331602586,1720578697570,-500.0,0.0001394,2]
[331602587,1720578697580,-606.78,0.0001394,2]
[331602588,1720578697589,-500.0,0.0001394,2]
[331602589,1720578697599,-500.0,0.0001394,2]
[331602590,1720578697608,-2546.33,0.0001394,2]
[331602591,1720578697618,-500.0,0.0001394,2]
[331602592,1720578697627,-500.0,0.0001394,2]
[331602593,1720578697636,-4733.97,0.0001394,2]
[331602594,1720578697646,-500.0,0.0001394,2]
[331602595,1720578697658,-500.0,0.0001394,2]
[331602596,1720578697667,-581.6334312,0.0001394,2]
[331602597,1720578697677,-1317.14,0.0001394,2]
[331602598,1720578697687,-1317.14,0.0001394,2]
[331602599,1720578697697,-500.0,0.0001394,2]
[331602600,1720578697706,-500.0,0.0001394,2]
[331602601,1720578697716,-5347.65,0.0001394,2]
[331602602,1720578697725,-500.0,0.0001394,2]
[331602603,1720578697735,-3712.9,0.0001394,2]
[331602604,1720578697744,-373.2737787,0.0001394,2]
[331602605,1720578697754,-500.0,0.0001394,2]
[331602606,1720578697763,-3617.99,0.0001394,2]
[331602607,1720578697772,-166.47679266,0.0001394,2]
[331602608,1720578697781,-500.0,0.0001394,2]
[331602609,1720578697790,-500.0,0.0001394,2]
[331602610,1720578697800,-1944.76,0.0001394,2]
[331602611,1720578697810,-500.0,0.0001394,2]
[331602612,1720578697819,-500.0,0.0001394,2]
[331602613,1720578697831,-500.0,0.0001394,2]
[331602614,1720578697840,-6292.93,0.0001394,2]
[331602615,1720578697850,-500.0,0.0001394,2]
[331602616,1720578697861,-500.0,0.0001394,2]
[331602617,1720578697872,-923.68,0.0001394,2]
[331602618,1720578697881,-500.0,0.0001394,2]
[331602619,1720578697890,-500.0,0.0001394,2]
[331602620,1720578697899,-500.0,0.0001394,2]
[331602621,1720578697908,-500.0,0.0001394,2]
[331602622,1720578697917,-3900.61,0.0001394,2]
[331602623,1720578697927,-1148.94,0.0001394,2]
[331602624,1720578697936,-1148.94,0.0001394,2]
[331602625,1720578697946,-500.0,0.0001394,2]
[331602626,1720578697956,-1108.95,0.0001394,2]
[331602627,1720578697965,-1390.96,0.0001394,2]
[331602628,1720578697974,-1390.96,0.0001394,2]
[331602629,1720578697984,-500.0,0.0001394,2]
[331602630,1720578697993,-500.0,0.0001394,2]
[331602631,1720578698003,-546.3188594,0.0001394,2]
[331602632,1720578698013,-500.0,0.0001394,2]
[331602633,1720578698022,-500.0,0.0001394,2]
[331602634,1720578698032,-500.0,0.0001394,2]
[331602635,1720578698041,-1959.1,0.0001394,2]
[331602636,1720578698050,-187.56833889,0.0001394,2]
[331602637,1720578698059,-500.0,0.0001394,2]
[331602638,1720578698068,-500.0,0.0001394,2]
[331602639,1720578698077,-500.0,0.0001394,2]
[331602640,1720578698086,-2330.31,0.0001394,2]
[331602641,1720578698096,-500.0,0.0001394,2]
[331602642,1720578698106,-500.0,0.0001394,2]
[331602643,1720578698115,-500.0,0.0001394,2]
[331602644,1720578698126,-500.0,0.0001394,2]
[331602645,1720578698136,-3674.18,0.0001394,2]
[331602646,1720578698145,-500.0,0.0001394,2]
[331602647,1720578698154,-500.0,0.0001394,2]
[331602648,1720578698163,-500.0,0.0001394,2]
[331602649,1720578698173,-533.57158983,0.0001394,2]
[331602650,1720578698182,-500.0,0.0001394,2]
[331602651,1720578698192,-5450.96,0.0001394,2]
[331602652,1720578698201,-553.13671995,0.0001394,2]
[331602653,1720578698210,-1854.06,0.0001394,2]
[331602654,1720578698220,-500.0,0.0001394,2]
[331602655,1720578698229,-500.0,0.0001394,2]
[331602656,1720578698238,-500.0,0.0001394,2]
[331602657,1720578698248,-500.0,0.0001394,2]
[331602658,1720578698256,-500.0,0.0001394,2]
[331602659,1720578698266,-2671.29,0.0001394,2]
[331602660,1720578698275,-500.0,0.0001394,2]
[331602661,1720578698285,-500.0,0.0001394,2]
[331602662,1720578698294,-500.0,0.0001394,2]
[331602663,1720578698303,-500.0,0.0001394,2]
[331602664,1720578698312,-5361.09,0.0001394,2]
[331602665,1720578698322,-500.0,0.0001394,2]
[331602666,1720578698332,-711.49,0.0001394,2]
[331602667,1720578698341,-500.0,0.0001394,2]
[331602668,1720578698350,-4790.22,0.0001394,2]
[331602669,1720578698359,-3071.88,0.0001394,2]
[331602670,1720578698369,-500.0,0.0001394,2]
[331602671,1720578698378,-5027.3,0.0001394,2]
[331602672,1720578698387,-500.0,0.0001394,2]
[331602673,1720578698396,-500.0,0.0001394,2]
[331602674,1720578698406,-1421.19,0.0001394,2]
[331602675,1720578698415,-1421.19,0.0001394,2]
[331602676,1720578698424,-500.0,0.0001394,2]
[331602677,1720578698433,-500.0,0.0001394,2]
[331602678,1720578698443,-574.81575526,0.0001394,2]
[331602679,1720578698453,-500.0,0.0001394,2]
[331602680,1720578698462,-500.0,0.0001394,2]
[331602681,1720578698471,-4204.27,0.0001394,2]
[331602682,1720578698481,-500.0,0.0001394,2]
[331602683,1720578698490,-500.0,0.0001394,2]
[331602684,1720578698499,-3445.23,0.0001394,2]
[331602685,1720578698510,-500.0,0.0001394,2]
[331602686,1720578698519,-3565.67,0.0001394,2]
[331602687,1720578698528,-4612.26,0.0001394,2]
[331602688,1720578698538,-4612.26,0.0001394,2]
[331602689,1720578698547,-500.0,0.0001394,2]
[331602690,1720578698556,-500.0,0.0001394,2]
[331602691,1720578698566,-500.0,0.0001394,2]
[331602692,1720578698575,-500.0,0.0001394,2]
[331602693,1720578698586,-1958.4,0.0001394,2]
[331602694,1720578698595,-1958.4,0.0001394,2]
[331602695,1720578698604,-500.0,0.0001394,2]
[331602696,1720578698614,-500.0,0.0001394,2]
[331602697,1720578698624,-500.0,0.0001394,2]
[331602698,1720578698633,-885.52,0.0001394,2]
[331602699,1720578698643,-885.52,0.0001394,2]
[331602700,1720578698652,-613.90121683,0.0001394,2]
[331602701,1720578698662,-500.0,0.0001394,2]
[331602702,1720578698671,-500.0,0.0001394,2]
[331602703,1720578698681,-500.0,0.0001394,2]
[331602704,1720578698690,-500.0,0.0001394,2]
[331602705,1720578698699,-500.0,0.0001394,2]
[331602706,1720578698709,-500.0,0.0001394,2]
[331602707,1720578698718,-554.5500329,0.0001394,2]
[331602708,1720578698727,-500.0,0.0001394,2]
[331602709,1720578698737,-501.58408723,0.0001394,2]
[331602710,1720578698747,-500.0,0.0001394,2]
[331602711,1720578698756,-500.0,0.0001394,2]
[331602712,1720578698766,-500.0,0.0001394,2]
[331602713,1720578698775,-500.0,0.0001394,2]
[331602714,1720578698784,-500.0,0.00013941,2]
[331602715,1720578698793,-763.52,0.00013941,2]
[331602716,1720578698803,-502.65,0.00013941,2]
[331602717,1720578698812,-500.0,0.00013941,2]
[331602718,1720578698822,-500.0,0.00013941,2]
[331602719,1720578698832,-1198.34,0.00013941,2]
[331602720,1720578698842,-500.0,0.00013941,2]
[331602721,1720578698852,-500.0,0.00013941,2]
[331602722,1720578698862,-500.0,0.00013941,2]
[331602723,1720578698872,-500.0,0.00013941,2]
[331602724,1720578698881,-2535.35,0.00013941,2]
[331602725,1720578698891,-817.04,0.00013941,2]
[331602726,1720578698900,-500.0,0.00013941,2]
[331602727,1720578698909,-1721.5,0.00013941,2]
[331602728,1720578698919,-1081.05,0.00013941,2]
[331602729,1720578698928,-500.0,0.00013941,2]
[331602730,1720578698938,-1050.05,0.00013941,2]
[331602731,1720578698948,-500.0,0.00013941,2]
[331602732,1720578698958,-500.0,0.00013941,2]
[331602733,1720578698967,-1586.28,0.00013941,2]
[331602734,1720578698977,-1401.84,0.00013941,2]
[331602735,1720578698986,-555.32,0.00013941,2]
[331602736,1720578698995,-500.0,0.00013941,2]
[331602737,1720578699004,-971.82,0.00013941,2]
[331602738,1720578699014,-805.75,0.00013941,2]
[331602739,1720578699023,-500.0,0.00013941,2]
[331602740,1720578699032,-4166.66,0.00013941,2]
[331602741,1720578699042,-500.0,0.00013941,2]
[331602742,1720578699052,-562.59,0.00013941,2]
[331602743,1720578699061,-971.0,0.00013941,2]
[331602744,1720578699071,-1144.48,0.00013941,2]
[331602745,1720578699080,-500.0,0.00013941,2]
[331602746,1720578699089,-1961.0,0.00013941,2]
[331602747,1720578699098,-3629.43,0.00013941,2]
[331602748,1720578699108,-934.96,0.00013941,2]
[331602749,1720578699118,-1598.19,0.00013941,2]
[331602750,1720578699128,-500.0,0.00013941,2]
[331602751,1720578699138,-2872.97,0.00013941,2]
[331602752,1720578699148,-500.0,0.00013941,2]
[331602753,1720578699157,-1527.09,0.00013941,2]
[331602754,1720578699166,-1945.05,0.00013941,2]
[331602755,1720578699176,-500.0,0.00013941,2]
[331602756,1720578699185,-961.55,0.00013941,2]
[331602757,1720578699194,-186.24523938,0.00013941,2]
[331602758,1720578699204,-500.0,0.00013941,2]
[331602759,1720578699214,-665.47,0.00013941,2]
[331602760,1720578699224,-716.9,0.00013941,2]
[331602761,1720578699233,-827.23,0.00013941,2]
[331602762,1720578699243,-500.0,0.00013941,2]
[331602763,1720578699252,-500.0,0.00013941,2]
[331602764,1720578699261,-500.0,0.00013941,2]
[331602765,1720578699271,-2735.66,0.00013941,2]
[331602766,1720578699280,-500.0,0.00013941,2]
[331602767,1720578699290,-500.0,0.00013941,2]
[331602768,1720578699299,-3892.01,0.00013941,2]
[331602769,1720578699309,-1267.38,0.00013941,2]
[331602770,1720578699318,-3117.94,0.00013941,2]
[331602771,1720578699328,-1066.11,0.00013941,2]
[331602772,1720578699338,-1522.71,0.00013941,2]
[331602773,1720578699348,-500.0,0.00013941,2]
[331602774,1720578699357,-500.0,0.00013941,2]
[331602775,1720578699366,-670.19,0.00013941,2]
[331602776,1720578699376,-1870.5,0.00013941,2]
[331602777,1720578699385,-2965.75,0.00013941,2]
[331602778,1720578699394,-1687.18,0.00013941,2]
[331602779,1720578699403,-1370.71,0.00013941,2]
[331602780,1720578699412,-500.0,0.00013941,2]
[331602781,1720578699422,-2553.08,0.00013941,2]
[331602782,1720578699432,-640.08,0.00013941,2]
[331602783,1720578699441,-603.72,0.00013941,2]
[331602784,1720578699450,-500.0,0.00013941,2]
[331602785,1720578699460,-827.94,0.00013941,2]
[331602786,1720578699469,-1887.82,0.00013941,2]
[331602787,1720578699478,-500.0,0.00013941,2]
[331602788,1720578699488,-835.89,0.00013941,2]
[331602789,1720578699497,-500.0,0.00013941,2]
[331602790,1720578699507,-500.0,0.00013941,2]
[331602791,1720578699517,-1017.28,0.00013941,2]
[331602792,1720578699526,-543.56,0.00013941,2]
[331602793,1720578699535,-1059.77,0.00013941,2]
[331602794,1720578699545,-815.72,0.00013941,2]
[331602795,1720578699555,-1730.67,0.00013941,2]
[331602796,1720578699564,-500.0,0.00013941,2]
[331602797,1720578699574,-500.0,0.00013941,2]
[331602798,1720578699586,-2447.23,0.00013941,2]
[331602799,1720578699596,-500.0,0.00013941,2]
[331602800,1720578699606,-847.02,0.00013941,2]
[331602801,1720578699615,-2703.75,0.00013941,2]
[331602802,1720578699625,-609.31,0.00013941,2]
[331602803,1720578699635,-728.38,0.00013941,2]
[331602804,1720578699644,-500.0,0.00013941,2]
[331602805,1720578699653,-500.0,0.00013941,2]
[331602806,1720578699662,-500.0,0.00013941,2]
[331602807,1720578699672,-500.0,0.00013941,2]
[331602808,1720578699682,-500.0,0.00013941,2]
[331602809,1720578699692,-500.0,0.00013941,2]
[331602810,1720578699701,-3395.91,0.00013941,2]
[331602811,1720578699710,-500.0,0.00013941,2]
[331602812,1720578699720,-500.0,0.00013941,2]
[331602813,1720578699740,-624.42,0.00013941,2]
[331602814,1720578699750,-1579.22,0.00013941,2]
[331602815,1720578699760,-2415.8,0.00013941,2]
[331602816,1720578699770,-500.0,0.00013941,2]
[331602817,1720578699779,-500.0,0.00013941,2]
[331602818,1720578699789,-500.0,0.00013941,2]
[331602819,1720578699798,-3634.66,0.00013941,2]
[331602820,1720578699808,-521.66,0.00013941,2]
[331602821,1720578699818,-1038.91,0.00013941,2]
[331602822,1720578699828,-1067.34,0.00013941,2]
[331602823,1720578699838,-500.0,0.00013941,2]
[331602824,1720578699848,-500.0,0.00013941,2]
[331602825,1720578699858,-5214.09,0.00013941,2]
[331602826,1720578699868,-5214.09,0.00013941,2]
[331602827,1720578699878,-500.0,0.00013941,2]
[331602828,1720578699888,-777.52,0.00013941,2]
[331602829,1720578699898,-699.68,0.00013941,2]
[331602830,1720578699908,-500.0,0.00013941,2]
[331602831,1720578699917,-500.0,0.00013941,2]
[331602832,1720578699927,-175.3881797,0.00013941,2]
[331602833,1720578699936,-500.0,0.00013941,2]
[331602834,1720578699946,-642.63,0.00013941,2]
[331602835,1720578699956,-775.83,0.00013941,2]
[331602836,1720578699965,-500.0,0.00013941,2]
[331602837,1720578699975,-637.16,0.00013941,2]
[331602838,1720578699984,-500.0,0.00013941,2]
[331602839,1720578699994,-500.0,0.00013941,2]
[331602840,1720578700003,-1225.75,0.00013941,2]
[331602841,1720578700012,-1404.23,0.00013941,2]
[331602842,1720578700022,-1056.74,0.00013941,2]
[331602843,1720578700031,-500.0,0.00013941,2]
[331602844,1720578700040,-500.0,0.00013941,2]
[331602845,1720578700050,-1172.82,0.00013941,2]
[331602846,1720578700060,-921.6,0.00013941,2]
[331602847,1720578700069,-500.0,0.00013941,2]
[331602848,1720578700080,-3520.51,0.00013941,2]
[331602849,1720578700089,-1536.65,0.00013941,2]
[331602850,1720578700099,-500.0,0.00013941,2]
[331602851,1720578700108,-992.28,0.00013941,2]
[331602852,1720578700118,-802.56,0.00013941,2]
[331602853,1720578700129,-1307.53,0.00013941,2]
[331602854,1720578700138,-1302.11,0.00013941,2]
[331602855,1720578700148,-625.12,0.00013941,2]
[331602856,1720578700158,-500.0,0.00013941,2]
[331602857,1720578700168,-1439.27,0.00013941,2]
[331602858,1720578700178,-896.64,0.00013941,2]
[331602859,1720578700187,-500.0,0.00013941,2]
[331602860,1720578700197,-500.0,0.00013941,2]
[331602861,1720578700206,-500.0,0.00013941,2]
[331602862,1720578700216,-2630.86,0.00013941,2]
[331602863,1720578700225,-500.0,0.00013941,2]
[331602864,1720578700234,-2834.79,0.00013941,2]
[331602865,1720578700244,-500.0,0.00013941,2]
[331602866,1720578700253,-873.1,0.00013941,2]
[331602867,1720578700263,-1346.21,0.00013941,2]
[331602868,1720578700272,-500.0,0.00013941,2]
[331602869,1720578700282,-2267.62,0.00013941,2]
[331602870,1720578700290,-500.0,0.00013941,2]
[331602871,1720578700300,-500.0,0.00013941,2]
[331602872,1720578700309,-2296.37,0.00013941,2]
[331602873,1720578700319,-2559.64,0.00013941,2]
[331602874,1720578700328,-1317.14,0.00013941,2]
[331602875,1720578700338,-500.0,0.00013941,2]
[331602876,1720578700347,-500.0,0.00013941,2]
[331602877,1720578700357,-1289.97,0.00013941,2]
[331602878,1720578700367,-1442.58,0.00013941,2]
[331602879,1720578700376,-553.69,0.00013941,2]
[331602880,1720578700386,-905.13,0.00013941,2]
[331602881,1720578700395,-743.33,0.00013941,2]
[331602882,1720578700404,-2451.31,0.00013941,2]
[331602883,1720578700413,-851.17,0.00013941,2]
[331602884,1720578700423,-1157.04,0.00013941,2]
[331602885,1720578700432,-500.0,0.00013941,2]
[331602886,1720578700442,-500.0,0.00013941,2]
[331602887,1720578700453,-625.31,0.00013941,2]
[331602888,1720578700463,-937.39,0.00013941,2]
[331602889,1720578700472,-1849.26,0.00013941,2]
[331602890,1720578700482,-500.0,0.00013941,2]
[331602891,1720578700491,-500.0,0.00013941,2]
[331602892,1720578700501,-1371.39,0.00013941,2]
[331602893,1720578700512,-1148.94,0.00013941,2]
[331602894,1720578700522,-1267.61,0.00013941,2]
[331602895,1720578700532,-1390.96,0.00013941,2]
[331602896,1720578700541,-506.64906826,0.00013941,2]
[331602897,1720578700553,-500.0,0.00013941,2]
[331602898,1720578700563,-500.0,0.00013941,2]
[331602899,1720578700574,-1742.41,0.00013941,2]
[331602900,1720578700584,-1913.5,0.00013941,2]
[331602901,1720578700594,-398.6,0.00013941,2]
[331602902,1720578700605,-500.0,0.00013941,2]
[331602903,1720578700615,-1874.79,0.00013941,2]
[331602904,1720578700624,-500.0,0.00013941,2]
[331602905,1720578700634,-685.43,0.00013941,2]
[331602906,1720578700644,-500.0,0.00013941,2]
[331602907,1720578700654,-1951.28,0.00013941,2]
[331602908,1720578700663,-1263.54,0.00013941,2]
[331602909,1720578700673,-1299.39,0.00013941,2]
[331602910,1720578700683,-500.0,0.00013941,2]
[331602911,1720578700693,-500.0,0.00013941,2]
[331602912,1720578700703,-3224.97,0.00013941,2]
[331602913,1720578700712,-500.0,0.00013941,2]
[331602914,1720578700722,-500.0,0.00013941,2]
[331602915,1720578700732,-766.4,0.00013941,2]
[331602916,1720578700742,-1216.68,0.00013941,2]
[331602917,1720578700752,-500.0,0.00013941,2]
[331602918,1720578700762,-500.0,0.00013941,2]
[331602919,1720578700772,-500.0,0.00013941,2]
[331602920,1720578700782,-2106.28,0.00013941,2]
[331602921,1720578700792,-1864.28,0.00013941,2]
[331602922,1720578700802,-522.69,0.00013941,2]
[331602923,1720578700812,-1779.04,0.00013941,2]
[331602924,1720578700823,-2013.32,0.00013941,2]
[331602925,1720578700837,-1257.04,0.00013941,2]
[331602926,1720578700847,-646.01,0.00013941,2]
[331602927,1720578700857,-500.0,0.00013941,2]
[331602928,1720578701053,-974.19,0.00013941,2]
[331602929,1720578701064,-2316.42,0.00013941,2]
[331602930,1720578701073,-2232.85,0.00013941,2]
[331602931,1720578701085,-1971.1,0.00013941,2]
[331602932,1720578701094,-709.55,0.00013941,2]
[331602933,1720578701103,-910.78,0.00013941,2]
[331602934,1720578701112,-2149.21,0.00013941,2]
[331602935,1720578701122,-500.0,0.00013941,2]
[331602936,1720578701132,-1878.79,0.00013941,2]
[331602937,1720578701143,-500.0,0.00013941,2]
[331602938,1720578701153,-500.0,0.00013941,2]
[331602939,1720578701163,-566.43393545,0.00013941,2]
[331602940,1720578701172,-1179.69,0.00013941,2]
[331602941,1720578701182,-503.9,0.00013941,2]
[331602942,1720578701191,-500.0,0.00013941,2]
[331602943,1720578701201,-1958.4,0.00013941,2]
[331602944,1720578701210,-519.46,0.00013941,2]
[331602945,1720578701220,-1989.11,0.00013941,2]
[331602946,1720578701229,-500.0,0.00013941,2]
[331602947,1720578701239,-2581.87,0.00013941,2]
[331602948,1720578701248,-885.52,0.00013941,2]
[331602949,1720578701258,-500.0,0.00013941,2]
[331602950,1720578701267,-500.0,0.00013941,2]
[331602951,1720578701277,-500.0,0.00013941,2]
[331602952,1720578701287,-725.01,0.00013941,2]
[331602953,1720578701297,-500.0,0.00013941,2]
[331602954,1720578701307,-3518.03,0.00013941,2]
[331602955,1720578701316,-548.36,0.00013941,2]
[331602956,1720578701326,-3021.94,0.00013941,2]
[331602957,1720578701336,-616.65542895,0.00013941,2]
[331602958,1720578701345,-603.17,0.00013941,2]
[331602959,1720578701356,-633.59,0.00013941,2]
[331602960,1720578701367,-2745.68,0.00013941,2]
[331602961,1720578701377,-500.0,0.00013941,2]
[331602962,1720578701386,-1219.41,0.00013941,2]
[331602963,1720578701396,-500.0,0.00013942,2]
[331602964,1720578701406,-500.0,0.00013942,2]
[331602965,1720578701415,-500.0,0.00013942,2]
[331602966,1720578701425,-500.0,0.00013942,2]
[331602967,1720578701434,-500.0,0.00013942,2]
[331602968,1720578701444,-500.0,0.00013942,2]
[331602969,1720578701453,-500.0,0.00013942,2]
[331602970,1720578701463,-500.0,0.00013942,2]
[331602971,1720578701472,-500.0,0.00013942,2]
[331602972,1720578701482,-500.0,0.00013942,2]
[331602973,1720578701491,-500.0,0.00013942,2]
[331602974,1720578701501,-500.0,0.00013942,2]
[331602975,1720578701510,-500.0,0.00013942,2]
[331602976,1720578701520,-500.0,0.00013942,2]
[331602977,1720578701529,-500.0,0.00013942,2]
[331602978,1720578701539,-500.0,0.00013942,2]
[331602979,1720578701548,-500.0,0.00013942,2]
[331602980,1720578701558,-500.0,0.00013942,2]
[331602981,1720578701567,-500.0,0.00013942,2]
[331602982,1720578701576,-500.0,0.00013942,2]
[331602983,1720578701587,-500.0,0.00013942,2]
[331602984,1720578701596,-500.0,0.00013942,2]
[331602985,1720578701610,-500.0,0.00013942,2]
[331602986,1720578701619,-500.0,0.00013942,2]
[331602987,1720578701628,-500.0,0.00013942,2]
[331602988,1720578701637,-424.20696171,0.00013942,2]
[331602989,1720578701646,-500.0,0.00013942,2]
[331602990,1720578701656,-500.0,0.00013942,2]
[331602991,1720578701665,-500.0,0.00013942,2]
[331602992,1720578701674,-559.08039658,0.00013942,2]
[331602993,1720578701684,-500.0,0.00013942,2]
[331602994,1720578701693,-500.0,0.00013942,2]
[331602995,1720578701702,-460.15784571,0.00013942,2]
[331602996,1720578701712,-500.0,0.00013942,2]
[331602997,1720578701721,-500.0,0.00013942,2]
[331602998,1720578701730,-500.0,0.00013942,2]
[331602999,1720578701740,-500.0,0.00013942,2]
[331603000,1720578701750,-500.0,0.00013942,2]
[331603001,1720578701759,-579.01052272,0.00013942,2]
[331603002,1720578701769,-500.0,0.00013942,2]
[331603003,1720578701779,-500.0,0.00013942,2]
[331603004,1720578701788,-500.0,0.00013942,2]
[331603005,1720578701798,-500.0,0.00013942,2]
[331603006,1720578701808,-817.04,0.00013942,2]
[331603007,1720578701818,-500.0,0.00013942,2]
[331603008,1720578701828,-500.0,0.00013942,2]
[331603009,1720578701839,-500.0,0.00013942,2]
[331603010,1720578701849,-500.0,0.00013942,2]
[331603011,1720578701859,-500.0,0.00013942,2]
[331603012,1720578701869,-971.82,0.00013942,2]
[331603013,1720578701878,-971.82,0.00013942,2]
[331603014,1720578701889,-4166.66,0.00013942,2]
[331603015,1720578701899,-4166.66,0.00013942,2]
[331603016,1720578701908,-500.0,0.00013942,2]
[331603017,1720578701918,-500.0,0.00013942,2]
[331603018,1720578701928,-500.0,0.00013942,2]
[331603019,1720578701938,-500.0,0.00013942,2]
[331603020,1720578701948,-500.0,0.00013942,2]
[331603021,1720578701958,-500.0,0.00013942,2]
[331603022,1720578701967,-1038.91,0.00013942,2]
[331603023,1720578701977,-5214.09,0.00013942,2]
[331603024,1720578701987,-1317.14,0.00013942,2]
[331603025,1720578701997,-1148.94,0.00013942,2]
[331603026,1720578702007,-1390.96,0.00013942,2]
[331603027,1720578702017,-500.0,0.00013942,2]
[331603028,1720578702026,-1421.19,0.00013942,2]
[331603029,1720578702036,-4612.26,0.00013942,2]